Cogmind - Beta 13 @@@ ROGUE MODE // 2024.05.15 @ 20:17:12 Player: Xorko Result: Self-destructed Performance ------------- Evolutions (1) 500 Regions Visited (3) 600 Robots Destroyed (15) 75 Value Destroyed (337) 337 Prototype IDs (0) 0 Alien Tech Used (0) 0 Bonus (0) 0 TOTAL SCORE: 1512 Bonus ------- None Cogmind --------- Core Integrity 350/400 Matter 235/300 Energy 36/250 System Corruption 0% Temperature Cool (0) Movement Walking (120) Location -9/Materials Parts ------- > --- POWER (1) -------- Ion Engine > --- PROPULSION (3) --- Aluminum Leg Aluminum Leg Carbon-fiber Leg > --- UTILITY (3) ------ Small Storage Unit Small Storage Unit Shield Generator > --- WEAPON (2) ------- (None) > --- INVENTORY (8) ---- Light Treads Light Treads Aluminum Leg Aluminum Leg Large Storage Unit Peak State ------------ > --- POWER ------------ Ion Engine > --- PROPULSION ------- Aluminum Leg Aluminum Leg Carbon-fiber Leg > --- UTILITY ---------- Small Storage Unit Small Storage Unit Shield Generator > --- WEAPON ----------- Heavy EM Pulse Gun Assault Rifle > --- INVENTORY -------- Ion Engine Light Treads Light Treads Aluminum Leg Large Storage Unit Assault Rifle Light Assault Rifle [Rating: 13] Favorites ----------- Power Ion Engine Engine Ion Engine Propulsion Aluminum Leg Leg Aluminum Leg Utility Small Storage Unit Device Shield Generator Storage Small Storage Unit Weapon Assault Rifle Energy Gun Heavy EM Pulse Gun Ballistic Gun Assault Rifle Build | -11 -10 -10 -9 ------- Run | Yrd Mat Min Mat Slots Evolved 2 | . . . 2 Power . | . . . . Propulsion 1 | . . . 1 Utility 1 | . . . 1 Weapon . | . . . . Parts Attached 21 | 8 6 2 5 Power 3 | 1 1 . 1 Engine 3 | 1 1 . 1 Core . | . . . . Reactor . | . . . . Propulsion 6 | 2 1 2 1 Treads . | . . . . Leg 6 | 2 1 2 1 Wheel . | . . . . Hover . | . . . . Flight . | . . . . Utility 5 | 2 2 . 1 Device 1 | . . . 1 Storage 4 | 2 2 . . Processor . | . . . . Hackware . | . . . . Protection . | . . . . Artifact . | . . . . Weapon 7 | 3 2 . 2 Energy Gun 2 | . 2 . . Energy Cannon . | . . . . Ballistic Gun 5 | 3 . . 2 Ballistic Cannon . | . . . . Launcher . | . . . . Special Weapon . | . . . . Impact Weapon . | . . . . Slashing Weapon . | . . . . Piercing Weapon . | . . . . Special Melee Weapon . | . . . . Unidentified Prototypes . | . . . . Parts Lost 2 | . 1 . 1 Power . | . . . . Propulsion . | . . . . Utility . | . . . . Weapon 2 | . 1 . 1 Highest Loss Streak 1 | . 1 . 1 To Critical Strikes . | . . . . Average Slot Usage (%) 99 | . 99 100 96 Engine 13 | . 14 14 10 Leg 28 | . 28 28 33 Device 1 | . . . 8 Storage 26 | . 28 28 22 Energy Gun 7 | . 5 14 9 Ballistic Gun 18 | . 22 14 11 Naked Turns . | . . . . Heaviest Build 22 | 19 20 20 22 Greatest Support 35 | 20 20 25 35 Greatest Overweight (x) 4 | 4 1 . . Average Overweight (x) . | . . . . Largest Inventory Capacity 15 | 8 15 8 8 Average Capacity 8 | 7 8 8 8 Most Carried 8 | 6 8 8 8 Average Carried 7 | 3 7 7 7 Final Capacity 8 | 8 8 8 8 Final Carried 8 | 6 7 8 5 Class Distribution -------------------- 100% | Mutant Dominant Class ---------------- Mutant | -10/Materials Mutant | -10/Mines Mutant | -9/Materials Resources | -11 -10 -10 -9 ----------- Run | Yrd Mat Min Mat Matter Collected 579 | 292 209 42 36 Remotely . | . . . . Salvage Created 493 | 97 247 46 103 Parts 25 | 4 15 3 3 Haulers Intercepted . | . . . . Recyclers Shooed 1 | . 1 . . Parts Field Recycled . | . . . . Retrieved Matter . | . . . . Parts Self-Destructed . | . . . . Prevented . | . . . . Kills | -11 -10 -10 -9 ------- Run | Yrd Mat Min Mat Combat Hostiles Destroyed 12 | . 7 1 4 Guns 11 | . 7 1 3 AOE 1 | . . . 1 Classes Destroyed 6 | 2 3 . 1 Tunneler 1 | 1 . . . Recycler 1 | 1 . . . Watcher 1 | . 1 . . Swarmer 6 | . 3 . 3 Grunt 5 | . 4 1 . Sentry 1 | . . . 1 Best Kill Streak 3 | 2 3 1 3 Combat Bots Only 3 | . 3 1 3 Max Kills in Single Turn 2 | 2 1 1 1 Gunslinging . | . . . . Exploded 1 | . . . 1 Melee . | . . . . Uniques/NPCs Destroyed . | . . . . Combat | -11 -10 -10 -9 -------- Run | Yrd Mat Min Mat Hostile Shots Fired 77 | . 42 4 31 Missed 22 | . 14 1 7 Damage Taken 712 | . 368 41 303 Core 58 | . 8 . 50 Absorbed by Shields 93 | . . . 93 Core Remaining (%) 98 | 100 . 96 . Volleys Fired 57 | 2 32 4 19 Largest 2 | 2 2 2 2 Hottest 65 | 40 65 65 65 Shots Fired 111 | 4 64 8 35 Gun 111 | 4 64 8 35 Cannon . | . . . . Launcher . | . . . . Special . | . . . . Kinetic 84 | 4 54 4 22 Thermal . | . . . . Explosive . | . . . . Electromagnetic 27 | . 10 4 13 Robot Hit Streak 11 | 3 10 6 11 Robot Miss Streak 7 | . 5 2 7 Penetration Max . | . . . . Secondary Targets . | . . . . Shots Hit Robots 69 | 3 43 4 19 Core Hits 23 | 3 12 2 6 Critical Kills 1 | . . . 1 Critical Parts Destroyed . | . . . . Critical Strikes 1 | . . . 1 Destroy 1 | . . . 1 Melee Attacks . | . . . . Impact . | . . . . Slashing . | . . . . Piercing . | . . . . Sneak Attacks . | . . . . Combat Hostiles . | . . . . Follow-up Attacks . | . . . . Damage Inflicted 988 | 51 608 67 262 Guns 914 | 51 580 55 228 Cannons . | . . . . Explosions 62 | . 28 . 34 Melee . | . . . . Ramming 12 | . . 12 . Kinetic 713 | 51 462 23 177 Thermal 62 | . 28 . 34 Explosive . | . . . . Electromagnetic 201 | . 118 32 51 Impact . | . . . . Slashing . | . . . . Piercing . | . . . . Highest Corruption . | . . . . Average Corruption . | . . . . Corruption Purged . | . . . . Corruption Blocked . | . . . . Overload Shots . | . . . . Overflow Damage 14 | . . . 14 Projectiles . | . . . . Explosions 14 | . . . 14 Melee . | . . . . Knockbacks 1 | . . 1 . Impact 1 | . . 1 . Kinetic . | . . . . Secondary . | . . . . Self-Inflicted Damage 32 | . 32 . . Shots 1 | . 1 . . Rammed . | . . . . Targets Rammed 1 | . . 1 . Kicked 1 | . . 1 . Crushed . | . . . . Highest Temperature 60 | . 60 12 . Average Temperature 14 | . 16 5 . Received Heat Transfer 198 | . 177 21 . Siege Activations . | . . . . Robots Corrupted . | . . . . Combat Hostiles . | . . . . Parts Fried . | . . . . Impact Corruptions . | . . . . Robots Melted . | . . . . Combat Hostiles . | . . . . Parts Melted . | . . . . Heat Transferred 100 | . 50 . 50 Parts Sabotaged . | . . . . Parts Stolen . | . . . . Parts Stripped . | . . . . Power Chain Reactions 2 | . 1 . 1 Alert | -11 -10 -10 -9 ------- Run | Yrd Mat Min Mat Peak Influence 197 | 10 182 86 197 Initial 66 | . 6 66 33 Average 68 | 4 79 82 82 Maximum Alert Level . | . . . . Low Security (%) 100 | 100 100 100 100 Level 1 . | . . . . Level 2 . | . . . . Level 3 . | . . . . Level 4 . | . . . . Level 5 . | . . . . High Security . | . . . . Max Security . | . . . . Squads Dispatched 3 | . 2 . 1 Investigation 1 | . 1 . . Extermination . | . . . . Reinforcement 2 | . 1 . 1 Assault . | . . . . Garrison . | . . . . Intercept . | . . . . Searches Triggered . | . . . . Construction Impeded . | . . . . Haulers Reinforced . | . . . . Active Scanning Responses . | . . . . Cargo Convoy Interrupts . | . . . . Stealth | -11 -10 -10 -9 --------- Run | Yrd Mat Min Mat Distress Signals 1 | . . . 1 Communications Jammed . | . . . . Distress Signals . | . . . . Times Spotted 33 | . 19 4 10 Peak Tracking Total 7 | . 4 2 7 Tactical Retreats 2 | . 2 . . Traps | -11 -10 -10 -9 ------- Run | Yrd Mat Min Mat Traps Triggered 1 | . 1 . . Indirectly . | . . . . Trap Hack Attempts . | . . . . Triggered . | . . . . Disarmed . | . . . . Reprogrammed . | . . . . Reused . | . . . . Traps Extracted . | . . . . Installed . | . . . . Triggered . | . . . . Machines | -11 -10 -10 -9 ---------- Run | Yrd Mat Min Mat Machines Disabled 2 | . . . 2 Max in Single Turn 1 | . . . 1 Machines Repaired . | . . . . Machines Dismantled . | . . . . Machines Sabotaged . | . . . . Overloaded Fab Kills . | . . . . Hacking | -11 -10 -10 -9 --------- Run | Yrd Mat Min Mat Machines Accessed . | . . . . Terminals . | . . . . Fabricators . | . . . . Repair Stations . | . . . . Recycling Units . | . . . . Scanalyzers . | . . . . Garrison Access . | . . . . Total Hacks . | . . . . Successful . | . . . . Failed . | . . . . Catastrophic . | . . . . Database Lockouts . | . . . . Manual . | . . . . Terminals . | . . . . Fabricators . | . . . . Repair Stations . | . . . . Recycling Units . | . . . . Scanalyzers . | . . . . Garrison Access . | . . . . Terminal Hacks . | . . . . Fabricator Hacks . | . . . . Repair Station Hacks . | . . . . Recycling Unit Hacks . | . . . . Scanalyzer . | . . . . Garrison Access Hacks . | . . . . Unauthorized Hacks . | . . . . Terminals . | . . . . Fabricators . | . . . . Repair Stations . | . . . . Recycling Units . | . . . . Scanalyzers . | . . . . Garrison Access . | . . . . Data Cores Recovered . | . . . . Used . | . . . . Hacking Detections . | . . . . Full Trace Events . | . . . . Feedback Events . | . . . . Feedback Blocked . | . . . . Robot Schematics Acquired . | . . . . Robots Built . | . . . . Authchips . | . . . . Time . | . . . . Total Robot Build Rating . | . . . . Part Schematics Acquired . | . . . . Parts Built . | . . . . Authchips . | . . . . Time . | . . . . Total Part Build Rating . | . . . . Parts Repaired . | . . . . Time . | . . . . Parts Recycled . | . . . . Recycled Matter . | . . . . Retrieved Matter . | . . . . Retrieved Components . | . . . . Parts Scanalyzed . | . . . . Part Schematics Acquired . | . . . . Parts Damaged . | . . . . Bothacking | -11 -10 -10 -9 ------------ Run | Yrd Mat Min Mat Used RIF Installer . | . . . . Robots Hacked . | . . . . Non-combat . | . . . . Combat . | . . . . Robot Hacks Applied . | . . . . Relay Couplers Released . | . . . . Fabnet Peak Effective % . | . . . . Robots Rewired . | . . . . Allies Hacked . | . . . . Hacks Repelled . | . . . . Allies | -11 -10 -10 -9 -------- Run | Yrd Mat Min Mat Total Allies . | . . . . Largest Group . | . . . . Highest-Rated Group . | . . . . Highest-Rated Ally . | . . . . Total Orders . | . . . . Ally Attacks . | . . . . Total Damage . | . . . . Kills . | . . . . Allies Corrupted . | . . . . Allies Melted . | . . . . Intel | -11 -10 -10 -9 ------- Run | Yrd Mat Min Mat Robot Analysis Total . | . . . . Derelict Logs Recovered . | . . . . Drone Launches . | . . . . Drone Recoveries . | . . . . Exploration | -11 -10 -10 -9 ------------- Run | Yrd Mat Min Mat Turns Passed 1283 | 204 699 167 213 Spaces Moved 826 | 127 456 123 120 Core 18 | 18 . . . Treads . | . . . . Legs 808 | 109 456 123 120 Wheels . | . . . . Hover . | . . . . Flight . | . . . . Fastest Speed 50 | 50 120 120 120 Average Speed 122 | 137 120 120 120 Slowest Speed 250 | 250 190 120 120 Overloaded Moves . | . . . . Propulsion Burnouts . | . . . . Robots Hopped . | . . . . Cave-ins Triggered . | . . . . Exploration Rate (%) 30 | 5 67 28 20 Regions Visited 3 Branch Regions 1 Pre-discovered Areas . | . . . . Known Exits Taken . | . . . . Unknown Exits Taken 3 | 1 1 1 . Scrap Searched . | . . . . Spaces Dug . | . . . . Terrain Destroyed 8 | . 5 . 3 Melee . | . . . . Projectile . | . . . . AOE 8 | . 5 . 3 Terrain Rammed . | . . . . Walls Destroyed . | . . . . Machines Disabled . | . . . . Actions | -11 -10 -10 -9 --------- Run | Yrd Mat Min Mat Total 985 | 151 545 134 155 Wait 46 | 2 35 . 9 Move 823 | 126 455 122 120 Hop . | . . . . Pick Up 27 | 13 9 3 2 Fast Attach . | . . . . Attach 15 | 7 3 . 5 Detach 1 | . 1 . . Swap 6 | 1 3 2 . Drop 9 | . 7 2 . Fire 57 | 2 32 4 19 Melee . | . . . . Ram . | . . . . Kick 1 | . . 1 . Crush . | . . . . Escape Stasis . | . . . . Rewire . | . . . . Trap . | . . . . Miscellaneous . | . . . . Route ------- -11/Scrapyard -10/Materials (discovered 2 exits: [*Mat] / [*Min]) -10/Mines -9/Materials History --------- Turn | Location | Event 29 | -11/Scrapyard | Discovered new exit (range 16) 205 | -11/Scrapyard | Entered Materials 309 | -10/Materials | Build established: Mutant 400 | -10/Materials | Discovered new exit (range 11) 582 | -10/Materials | Discovered new exit (range 7) 904 | -10/Materials | Entered Mines 1058 | -10/Mines | Discovered new exit (range 7) 1071 | -10/Mines | Entered Materials 1071 | -9/Materials | Evolved 2 slots: Propulsion x1, Utility x1 1284 | -9/Materials | Self-destructed Last Messages --------------- 01234_ U-05 Engineer lays Concrete. 01236_ Acquired 27 matter. 01236_ U-05 Engineer builds a Wall. 01240_ R-06 Scavenger collects Flight Unit. 01240_ Acquired 9 matter. 01241_ W-16 Scout sends out distress signal. 01241_ U-05 Engineer lays Concrete. 01244_ U-05 Engineer builds a Door. 01249_ U-05 Engineer lays Concrete. 01263_ Processing Tank disabled. 01264_ Y-45 Defender suffers critical hit (Destroy). 01264_ Y-45 Defender destroyed. 01266_ Hvy. EM Pulse Gun destroyed. 01268_ Assault Rifle severed. 01278_ Ion Engine severed. 01280_ K-01 Serf collects debris. 01281_ Assault Rifle severed. 01283_ Lgt. Assault Rifle severed. 01284_ K-01 Serf collects debris. Map ----- +----------------------------------------------------+ | ?????????????????????????# + | | ?????????????????????????# # | | ?????????????????????????# # #######+ | | ?????????????????????????# # """" #??# | | ?????????????????????????# # """" #??# | | ?????????????????????????# + """" #??# | | ?????????????????????????# # #??# | | ?????????????????????????# # #??# | | ????????????????????############ """" #??# | | ????????????????????# # """" ##?##### | | ????????????????????# # %""" #?????? | | ????????????????????# + #?????? | | ????????????????????# """ # + ??? | | ????????????????????# """"" # "" ## ???? | | ????????????????????# """"" # "" #?????? | | ????????????????????# """"" # """ #?????? | | ????????????????????# """ # #?????? | | ????????????????????########### #?????? | | ??????????????????????????????# """ #?????? | | ??????????????????????????????# """ #?????? | | ???????????????????????########k """ #????? | | ????????????????########" w ??? | | ??????????# % ??? | | ????????????????########" m ??? | | ????????????????????######l########"T"# ???? | | ????????????????????# [@[= #?####?######???? | | ????????????????????# *[ #???????????????? | | ????????????????????# " """ ! #???????????????? | | ????????????????????# """"" #???????????????? | | ????????????????????# """"" #???????????????? | | ????????????????????##############???????????????? | | ?????????????????????????????????????????????????? | | ?????????????????????????????????????????????????? | | ?????????????????????????????????????????????????? | | ?????????????????????????????????????????????????? | | ?????????????????????????????????????????????????? | | ?????????????????????????????????????????????????? | | ?????????????????????????????????????????????????? | | ?????????????????????????????????????????????????? | | ?????????????????????????????????????????????????? | | ?????????????????????????????????????????????????? | | ?????????????????????????????????????????????????? | | ?????????????????????????????????????????????????? | | ?????????????????????????????????????????????????? | | ?????????????????????????????????????????????????? | | ?????????????????????????????????????????????????? | | ?????????????????????????????????????????????????? | | ?????????????????????????????????????????????????? | | ?????????????????????????????????????????????????? | | ?????????????????????????????????????????????????? | +----------------------------------------------------+ Best States ------------- Heat Dissipation 28 Energy Generation 10 Energy Capacity 250 Matter Stores 300 Matter Capacity 300 Sight Range 16 Terrain Scan Density 10 Evasion (%) 55 Item Schematics ----------------- None Robot Schematics ------------------ None Fabricated ------------ Nothing Alien Tech Used ----------------- None Achievements -------------- None Challenges ------------ None Game ------ Seed XenonDiametricUnit Manual? 0 Play Time 00:19:48 Cumulative 4.0 hours Start 2024.05.15 @ 19:31:18 End 2024.05.15 @ 20:17:12 Sessions 1 Manual Loads 0 Difficulty Rogue Special Mode None Game No. 4 Rogue 1 Adventurer 3 Explorer 0 Win Type - Total 0 Types 0/0/0/0/0/0/0/0/0 Lore% 1 Gallery% 6 Achievement% 7 Wizard Run 0 Options --------- Layout 1 ASCII 0 Keyboard 0 Movement Mouse Keybinds 0 Fullscreen 2 Font 32/SmallcapsGlow Map View 50x35 Zoom Use 0% Tactical HUD 1 Map Filters NONE Filters NONE Steam 1 RUN: 4213a0c6-3213-487b-89f5-14aae07052e1